bitfinex/quotes_ETHUSD_20240612
["timestamp","ask_amount","ask_price","bid_price","bid_amount"]
[1718170815136,3.39794,3511.3,3511.2,0.27304245]
[1718170815336,3.39794,3511.3,3510.8,0.00142688]
[1718170815337,2.84827,3510.9,3510.8,0.00142688]
[1718170815842,3.39827,3510.9,3510.8,0.00142688]
[1718170816056,3.39827,3510.9,3510.8,0.27464899]
[1718170816929,6.53217,3510.9,3510.8,0.27464899]
[1718170817165,9.959497,3510.9,3510.8,0.27464899]
[1718170817523,9.959497,3510.9,3510.8,0.00142688]
[1718170817826,2.84859,3510.5,3510.4,0.1223158]
[1718170818034,4.27359,3510.5,3510.4,0.1223158]
[1718170818843,3.39859,3510.5,3510.4,0.1223158]
[1718170820564,7.41,3511.0,3510.4,2.3906158]
[1718170820762,7.41,3511.0,3510.9,0.875]
[1718170820958,7.41,3511.0,3510.7,3.3068]
[1718170821164,7.41,3511.0,3510.9,0.27355]
[1718170821358,7.41,3511.0,3510.8,0.27360794]
[1718170821568,7.41,3511.0,3510.9,0.27355]
[1718170822290,7.41,3511.0,3510.7,2.4318]
[1718170822476,7.41,3511.0,3510.9,0.27355]
[1718170822786,7.41,3511.0,3510.8,0.62833679]
[1718170823100,7.41,3511.0,3510.9,0.27355]
[1718170825683,2.84784,3511.5,3510.9,0.27355]
[1718170825883,3.55,3511.4,3510.9,0.27355]
[1718170826093,3.55,3511.4,3510.9,0.95205058]
[1718170834599,0.55,3511.4,3510.9,0.95205058]
[1718170835689,0.55,3511.4,3511.0,2.4181]
[1718170835888,0.55,3511.4,3511.0,2.7209412]
[1718170838313,0.55,3511.4,3511.3,0.875]
[1718170838466,0.55,3511.5,3511.3,1.23459412]
[1718170838847,0.55,3511.5,3511.3,1.53692913]
[1718170841011,0.55,3511.5,3511.3,2.13467484]
[1718170841483,0.55,3511.5,3511.3,1.53692913]
[1718170842404,0.55,3511.5,3511.3,2.13467484]
[1718170842646,0.55,3511.5,3511.4,2.78405721]
[1718170842976,0.55,3511.5,3511.4,3.08633346]
[1718170843183,0.55,3511.5,3511.4,3.68407917]
[1718170845217,0.55,3511.5,3511.4,3.08633346]
[1718170845625,0.55,3511.5,3511.4,3.68240122]
[1718170846118,0.55,3511.5,3511.4,3.08633346]
[1718170849840,7.41,3512.1,3511.4,3.08633346]
[1718170849986,12.765,3512.4,3511.7,1.47100669]
[1718170850185,3.0,3512.3,3511.7,1.47100669]
[1718170850509,3.0,3512.3,3511.8,0.30204124]
[1718170850687,3.0,3512.3,3511.7,1.47100669]
[1718170851018,3.0,3512.3,3511.8,3.14957124]
[1718170851427,0.55,3512.2,3511.8,3.14957124]
[1718170859725,0.55,3512.2,3511.8,0.30204124]
[1718170859907,0.55,3512.2,3511.7,0.875]
[1718170860114,0.55,3512.2,3511.9,0.30169617]
[1718170860318,3.0,3512.3,3511.8,5.50933491]
[1718170860633,7.41,3512.4,3512.0,0.30163743]
[1718170860929,7.41,3512.4,3512.1,0.30131836]
[1718170861527,7.41,3512.4,3511.9,1.47100669]
[1718170861996,7.41,3512.4,3512.0,0.30133806]
[1718170862598,0.55,3512.3,3512.0,0.30133806]
[1718170864145,3.55,3512.6,3512.0,0.30133806]
[1718170865235,2.84697,3512.5,3512.0,0.30133806]
[1718170865439,2.978,3512.4,3512.0,0.30133806]
[1718170865623,2.978,3512.4,3511.8,2.3601]
[1718170865828,2.978,3512.4,3511.9,0.30123629]
[1718170867229,2.84714,3512.3,3511.7,1.47100669]
[1718170867426,0.55,3512.2,3511.9,0.59600669]
[1718170867626,0.55,3512.2,3512.0,0.30117755]
[1718170868620,0.55,3512.2,3512.1,0.30111881]
[1718170868806,0.55,3512.2,3511.9,0.59600669]
[1718170869006,0.55,3512.2,3512.0,0.30117755]
[1718170870042,0.55,3512.2,3512.0,0.89718424]
[1718170870762,0.55,3512.5,3512.0,3.18488424]
[1718170871524,0.55,3512.5,3512.1,0.59600669]
[1718170871854,0.55,3512.5,3512.2,0.30106008]
[1718170875636,0.55,3512.5,3512.3,2.264]
[1718170875870,0.55,3512.5,3512.4,0.30095129]
[1718170876046,0.55,3512.5,3512.3,2.264]
[1718170876243,0.55,3512.5,3512.4,0.30095129]
[1718170876444,0.55,3512.6,3512.2,0.59600669]
[1718170876679,0.55,3512.6,3512.3,0.300997]
[1718170877203,0.55,3512.6,3512.2,0.59600669]
[1718170877406,0.55,3512.6,3512.4,0.30093828]
[1718170877606,0.55,3512.6,3512.3,0.300997]
[1718170877906,0.55,3512.6,3512.4,0.30093828]
[1718170878081,0.55,3512.6,3512.2,0.59600669]
[1718170878281,0.55,3512.6,3512.5,0.30087955]
[1718170878478,0.55,3512.6,3512.3,2.264]
[1718170878690,0.55,3512.6,3512.5,0.30087955]
[1718170878899,0.55,3512.6,3512.3,2.264]
[1718170879069,0.55,3512.6,3512.5,0.30087955]
[1718170879383,0.55,3512.6,3512.3,2.86000669]
[1718170879700,0.55,3512.6,3512.4,0.30093828]
[1718170879901,0.55,3512.6,3512.3,2.86000669]
[1718170880105,0.55,3512.6,3512.5,0.30087955]
[1718170880404,0.55,3512.6,3512.3,2.86000669]
[1718170880604,0.55,3512.6,3512.5,0.30087955]
[1718170881107,0.55,3512.6,3512.3,2.264]
[1718170881404,0.55,3512.6,3512.5,0.30087955]
[1718170881611,0.55,3512.6,3512.4,0.30093828]
[1718170881783,0.55,3512.6,3512.5,0.30087955]
[1718170882115,0.55,3512.6,3512.3,2.264]
[1718170882270,0.55,3512.6,3512.5,0.30087955]
[1718170882468,0.55,3512.6,3512.3,2.86000669]
[1718170882781,0.55,3512.6,3512.4,0.30093828]
[1718170883305,0.55,3512.6,3512.5,0.30087955]
[1718170883503,0.55,3512.6,3512.3,2.86000669]
[1718170883703,0.55,3512.6,3512.5,0.30087955]
[1718170884408,0.55,3512.6,3512.3,2.86000669]
[1718170884571,0.55,3512.6,3512.5,0.30087955]
[1718170884772,0.55,3512.6,3512.3,2.86000669]
[1718170884974,0.55,3512.6,3512.5,0.30087955]
[1718170885198,0.55,3512.6,3512.3,2.86000669]
[1718170885412,0.55,3512.6,3512.5,0.30087955]
[1718170885874,0.55,3512.6,3512.3,2.86000669]
[1718170886067,0.55,3512.6,3512.4,0.30093828]
[1718170886270,0.55,3512.6,3512.3,2.86000669]
[1718170886509,0.55,3512.6,3512.4,0.30093828]
[1718170886824,0.55,3512.6,3512.3,2.86000669]
[1718170886973,0.55,3512.6,3512.5,0.30087955]
[1718170887177,0.55,3512.6,3512.3,2.86000669]
[1718170887397,0.55,3512.6,3512.5,0.30087955]
[1718170887577,0.55,3512.6,3512.4,0.30093828]
[1718170887784,0.55,3512.6,3512.3,2.86000669]
[1718170887978,0.55,3512.6,3512.5,0.30087955]
[1718170888178,0.55,3512.6,3512.3,2.86000669]
[1718170888680,0.55,3512.6,3512.5,0.30087955]
[1718170893878,0.55,3512.6,3512.5,0.89688624]
[1718170897088,0.55,3512.6,3512.5,0.84688624]
[1718170902556,0.55,3512.6,3512.5,0.25087955]
[1718170913240,0.55,3512.6,3512.5,3.12278267]
[1718170917425,0.55,3512.6,3512.5,3.12536537]
[1718170918494,0.55,3512.6,3512.5,2.22877263]
[1718170920714,3.0,3512.7,3512.6,2.84689]
[1718170920916,7.41,3512.8,3512.6,5.7214065]
[1718170921187,7.41,3512.8,3512.7,2.87447846]
[1718170921388,10.41,3512.8,3512.7,3.17345247]
[1718170921731,7.41,3512.8,3512.7,2.27682905]
[1718170922045,7.41,3512.8,3512.7,3.46947272]
[1718170922355,7.41,3513.2,3512.7,3.37372037]
[1718170922494,3.55,3513.1,3513.0,0.59752733]
[1718170922843,3.55,3513.1,3513.0,0.29868512]
[1718170926238,3.55,3513.1,3513.0,0.89578489]
[1718170927262,3.55,3513.1,3513.0,0.29868512]
[1718170927535,3.55,3513.1,3513.0,0.89578489]
[1718170928101,3.55,3513.1,3513.0,0.29868512]
[1718170928339,3.55,3513.1,3513.0,0.89578489]
[1718170934084,0.55,3513.1,3513.0,0.89578489]
[1718170934284,7.41,3513.7,3513.0,3.56068721]
[1718170934507,7.41,3513.7,3513.3,0.59667126]
[1718170934785,3.2439,3514.0,3513.4,0.89496982]
[1718170935090,10.25565,3514.2,3513.4,0.29829856]
[1718170935091,2.8461,3513.6,3513.4,0.29829856]
[1718170935253,3.1772,3513.5,3513.4,0.29829856]
[1718170935586,7.61064514,3513.5,3513.4,1e-08]
[1718170935878,2.84705,3512.4,3512.2,0.59667126]
[1718170936078,2.84723,3512.2,3511.9,0.59667126]
[1718170936249,2.84723,3512.2,3511.7,0.59667126]
[1718170936250,0.875,3512.0,3511.7,0.59667126]
[1718170936439,0.55,3511.9,3511.6,0.59667126]
[1718170936847,0.55,3511.9,3511.4,3.15889099]
[1718170936848,0.55,3511.9,3511.5,0.59667126]
[1718170938666,0.55,3512.0,3511.5,0.59667126]
[1718170938993,0.55,3512.0,3511.6,0.59667126]
[1718170939288,0.55,3512.0,3511.5,0.59667126]
[1718170939492,0.55,3512.0,3511.6,0.59667126]
[1718170940266,0.55,3512.0,3511.5,0.59667126]
[1718170943062,0.55,3512.0,3511.5,1.47167126]
[1718170943262,0.55,3512.0,3511.6,0.27893678]
[1718170943787,0.55,3512.0,3511.5,1.47167126]
[1718170943989,0.55,3512.0,3511.7,0.27887803]
[1718170944152,0.55,3512.0,3511.5,1.47167126]
[1718170944370,0.55,3512.0,3511.8,0.27881928]
[1718170944572,0.55,3512.0,3511.5,1.47167126]
[1718170944804,0.55,3512.0,3511.9,0.27876054]
[1718170944970,0.55,3512.0,3511.5,1.47167126]
[1718170945171,0.55,3512.0,3511.9,0.27876054]
[1718170945388,0.55,3512.0,3511.5,1.47167126]
[1718170945582,0.55,3512.0,3511.9,0.27876054]
[1718170945814,0.55,3512.0,3511.5,1.47167126]
[1718170946009,0.55,3512.0,3511.9,0.27876054]
[1718170946313,0.55,3512.0,3511.5,1.47167126]
[1718170946672,0.55,3512.0,3511.6,0.27893678]
[1718170946993,0.55,3512.0,3511.5,1.47167126]
[1718170947200,0.55,3512.0,3511.7,0.27887803]
[1718170947369,0.55,3512.0,3511.5,1.47167126]
[1718170947575,0.55,3512.0,3511.8,0.27881928]
[1718170947818,0.55,3512.0,3511.5,0.875]
[1718170947994,0.55,3512.0,3511.9,0.27876054]
[1718170948198,0.55,3512.0,3511.5,0.875]
[1718170948390,0.55,3512.0,3511.9,0.27876054]
[1718170948591,0.55,3512.0,3511.5,1.47167126]
[1718170948904,0.55,3512.0,3511.9,0.27876054]
[1718170949097,0.55,3512.0,3511.5,0.875]
[1718170949503,0.55,3512.0,3511.6,0.27893678]
[1718170949818,0.55,3512.0,3511.5,0.875]
[1718170949999,0.55,3512.0,3511.7,0.27887803]
[1718170950197,0.55,3512.0,3511.5,0.875]
[1718170950513,3.0,3512.1,3511.9,2.2993]
[1718170950691,5.27883,3512.6,3511.9,2.2993]
[1718170950692,3.875,3512.5,3511.9,2.2993]
[1718170951016,3.875,3512.5,3512.0,0.2791758]
[1718170951414,3.875,3512.5,3511.7,3.1743]
[1718170951583,3.875,3512.5,3512.1,0.27911706]
[1718170951806,0.55,3512.4,3511.7,3.1743]
[1718170952010,0.55,3512.4,3512.2,0.27905833]
[1718170952234,0.55,3512.4,3511.7,3.1743]
[1718170952550,0.55,3512.4,3512.3,0.2789996]
[1718170952730,0.55,3512.4,3511.7,3.1743]
[1718170952923,0.55,3512.4,3511.8,0.69985439]
[1718170953323,0.55,3512.4,3511.8,1.29652565]
[1718170953711,0.55,3512.4,3511.8,0.69985439]
[1718170954826,0.875,3512.1,3511.8,0.27929328]
[1718170955041,0.55,3512.0,3511.7,0.59667126]
[1718170955210,0.55,3512.0,3511.9,0.27923454]
[1718170955415,1.425,3512.0,3511.2,3.04007126]
[1718170955748,1.425,3512.0,3511.9,0.27923454]
[1718170955919,3.131086,3512.0,3511.2,3.04007126]
[1718170956126,1.425,3512.0,3511.2,3.04007126]
[1718170956441,1.425,3512.0,3511.3,0.27958705]
[1718170957026,1.425,3512.0,3511.3,0.87625831]
[1718170957225,1.425,3512.0,3511.3,0.27958705]
[1718170957947,0.55,3512.0,3511.3,0.27958705]
[1718170958243,3.39736,3512.1,3511.3,1.27133523]
[1718170958817,3.39736,3512.1,3511.3,2.14633523]
[1718170959769,3.39736,3512.1,3511.3,1.27133523]
[1718170960066,3.39736,3512.1,3511.3,0.27958705]
[1718170962941,2.2683,3512.0,3511.3,0.27958705]
[1718170963130,0.55,3511.9,3511.3,0.27958705]
[1718170971438,2.84754,3511.8,3511.3,0.27958705]
[1718170971675,0.55,3511.7,3511.2,2.4434]
[1718170971973,0.55,3511.7,3511.4,0.28005832]
[1718170972150,0.55,3511.7,3511.3,0.28011708]
[1718170972660,0.55,3511.7,3511.4,0.28005832]
[1718170972860,0.55,3511.7,3511.2,2.4434]
[1718170973067,0.55,3511.7,3511.5,0.27999956]
[1718170973386,0.55,3511.7,3511.6,0.27994081]
[1718170975722,0.55,3511.7,3511.2,2.4434]
[1718170975909,0.55,3511.7,3511.6,0.27994081]
[1718170976117,0.55,3511.7,3511.2,3.04007126]
[1718170976289,0.55,3511.7,3511.6,0.27994081]
[1718170976489,0.55,3511.7,3511.2,3.04007126]
[1718170976831,0.55,3511.7,3511.6,0.27994081]
[1718170977020,0.55,3511.7,3511.2,3.04007126]
[1718170977323,0.55,3511.7,3511.3,0.28017311]
[1718170977721,0.55,3511.7,3511.2,3.04007126]
[1718170978022,0.55,3511.7,3511.3,0.28017311]
[1718170978232,0.55,3511.7,3511.3,0.87684437]
[1718170980093,0.55,3511.7,3511.4,0.59667126]
[1718170980522,0.55,3511.7,3511.5,0.28005559]
[1718170981228,0.55,3511.7,3511.6,0.59667126]
[1718170981406,0.55,3511.7,3511.6,0.8766681]
[1718170981731,1.204084,3511.7,3511.6,0.8766681]
[1718170982040,7.354184,3511.7,3511.6,0.27999684]
[1718170982346,2.84779,3511.5,3511.0,0.59667126]
[1718170982506,2.84796,3511.3,3511.0,0.59667126]
[1718170982696,3.72311,3511.1,3511.0,0.59667126]
[1718170982894,3.72311,3511.1,3510.7,0.59667126]
[1718170983117,4.27311,3511.1,3510.7,0.59667126]
[1718170983435,3.72311,3511.1,3510.6,0.59809822]
[1718170983733,2.84828,3510.9,3510.6,0.00142696]
[1718170983930,0.55,3510.8,3510.6,0.00142696]
[1718170990235,0.55,3510.8,3510.7,0.28096351]
[1718170995009,0.55,3510.8,3510.7,2.69446351]
[1718170995210,0.55,3511.1,3510.7,2.69446351]
[1718171000145,0.55,3511.1,3510.7,3.29113477]
[1718171001554,0.5,3511.1,3510.8,1.97805653]
[1718171001754,3.0,3511.5,3510.9,0.59667126]
[1718171002051,3.0,3511.6,3511.0,0.59667126]
[1718171002441,3.0,3511.6,3511.1,0.2808425]
[1718171002748,3.0,3511.6,3511.0,0.59667126]
[1718171002940,3.0,3511.6,3511.2,0.28078373]
[1718171003114,3.0,3511.6,3511.1,0.2808425]
[1718171003310,3.0,3511.6,3511.0,0.59667126]
[1718171003547,3.0,3511.6,3511.2,0.28078373]
[1718171003716,0.55,3511.5,3511.1,0.2808425]
[1718171003917,3.55,3511.5,3511.3,0.28072497]
[1718171004437,0.55,3511.5,3511.4,0.28066621]
[1718171004751,0.55,3511.5,3511.1,0.59667126]
[1718171004914,0.55,3511.5,3511.4,0.28066621]
[1718171005113,0.55,3511.5,3511.1,0.59667126]
[1718171005314,0.55,3511.5,3511.4,0.28066621]
[1718171005514,0.55,3511.5,3511.1,1.48606352]
[1718171006031,0.55,3511.5,3511.2,0.28078373]
[1718171006342,0.55,3511.5,3511.1,1.48606352]
[1718171006552,0.55,3511.5,3511.3,0.28072497]
[1718171006753,0.55,3511.5,3511.2,0.28078373]
[1718171007038,0.55,3511.5,3511.3,0.28072497]
[1718171007228,0.55,3511.5,3511.1,1.48606352]
[1718171007432,0.55,3511.5,3511.2,0.28078373]
[1718171007626,0.55,3511.5,3511.1,1.48606352]
[1718171007836,0.55,3511.5,3511.2,0.28078373]
[1718171008184,0.55,3511.5,3511.1,1.48606352]
[1718171008382,0.55,3511.5,3511.3,0.28072497]
[1718171008553,0.55,3511.5,3511.3,0.59667126]
[1718171008721,0.55,3511.5,3511.4,0.28070933]
[1718171009861,0.55,3511.5,3511.2,1.06084522]
[1718171010062,0.55,3511.5,3511.3,0.75011172]
[1718171010361,0.55,3511.5,3511.3,1.03087981]
[1718171013527,3.55,3511.8,3511.3,1.03087981]
[1718171014258,3.55,3511.8,3511.3,1.62755107]
[1718171018968,3.55,3511.8,3511.4,0.59667126]
[1718171019331,3.55,3511.8,3511.5,0.2804565]
[1718171022535,0.55,3511.8,3511.5,0.87712776]
[1718171022735,0.55,3511.8,3511.5,3.83584488]
[1718171026153,3.55,3512.0,3511.5,3.83584488]
[1718171026348,3.55,3512.0,3511.5,3.23917362]
[1718171026675,3.0,3511.9,3511.5,3.83584488]
[1718171026852,0.55,3511.8,3511.5,3.83584488]
[1718171027043,0.55,3512.0,3511.5,3.83584488]
[1718171028172,0.55,3512.0,3511.5,3.23917362]
[1718171030781,0.55,3512.0,3511.5,3.83584488]
[1718171031153,0.55,3512.0,3511.5,3.25172776]
[1718171037272,0.55,3512.0,3511.7,0.59667126]
[1718171037472,0.55,3512.0,3511.8,0.28017682]
[1718171037677,0.55,3512.0,3511.7,0.59667126]
[1718171037875,0.55,3512.0,3511.8,0.28017682]
[1718171038064,0.55,3512.0,3511.7,0.59667126]
[1718171038268,0.55,3512.0,3511.8,0.28017682]
[1718171038467,0.55,3512.0,3511.7,0.59667126]
[1718171038756,0.55,3512.0,3511.8,0.28017682]
[1718171039190,0.55,3512.0,3511.7,0.59667126]
[1718171039422,0.55,3512.0,3511.9,0.28009634]
[1718171039586,0.55,3512.0,3511.8,0.28013445]
[1718171039881,0.55,3512.0,3511.9,0.2800757]
[1718171040086,0.55,3512.0,3511.7,0.59667126]
[1718171040290,0.55,3512.0,3511.8,0.28015508]
[1718171040479,0.55,3512.0,3511.7,0.59667126]
[1718171040657,0.55,3512.0,3511.8,0.28017682]
[1718171040857,0.55,3512.0,3511.7,0.59667126]
[1718171041059,0.55,3512.0,3511.8,0.28017682]
[1718171041259,0.55,3512.0,3511.7,0.59667126]
[1718171041458,0.55,3512.0,3511.8,0.28017682]
[1718171041789,0.55,3512.0,3511.7,0.59667126]
[1718171041987,0.55,3512.0,3511.9,0.28011808]
[1718171042151,0.55,3512.0,3511.8,0.28017682]
[1718171042497,0.55,3512.0,3511.9,0.28011808]
[1718171045283,0.55,3512.0,3511.9,0.87678934]
[1718171047579,0.55,3512.0,3511.9,0.28011808]
[1718171048374,0.55,3512.0,3511.9,3.38672316]
[1718171048608,0.55,3512.2,3511.9,4.28301415]
[1718171048813,0.55,3512.2,3512.1,0.59715999]
[1718171049110,0.55,3512.2,3512.1,0.87711205]
[1718171054191,0.55,3512.3,3512.1,0.27995206]
[1718171054400,2.84695,3512.6,3512.2,0.59710871]
[1718171054401,3.55,3512.5,3512.2,0.59710871]
[1718171054603,3.55,3512.5,3512.3,0.59708585]
[1718171054785,3.55,3512.5,3512.3,0.87655511]
[1718171055218,3.55,3512.5,3512.3,0.27946926]
[1718171055599,3.55,3512.5,3512.3,0.59708585]
[1718171055807,3.55,3512.5,3512.4,0.27941054]
[1718171056119,3.55,3512.5,3512.3,0.59708585]
[1718171056319,3.55,3512.5,3512.4,0.27941054]
[1718171056519,3.55,3512.5,3512.3,0.59708585]
[1718171056698,3.55,3512.5,3512.4,0.27941054]
[1718171056895,0.55,3512.5,3512.3,0.94423758]
[1718171057219,3.0,3512.7,3512.4,0.27941054]
[1718171057622,3.0,3512.7,3512.4,0.59708585]
[1718171057809,3.0,3512.7,3512.5,0.27935181]
[1718171058409,0.55,3512.6,3512.3,0.94423758]
[1718171058611,0.55,3512.6,3512.4,0.62727691]
[1718171060508,3.875,3512.9,3512.4,0.62727691]
[1718171060509,0.55,3512.8,3512.4,0.62727691]
[1718171060696,0.55,3512.8,3512.3,0.94423758]
[1718171063044,3.39681,3512.8,3512.3,0.94423758]
[1718171063222,3.0,3512.7,3512.3,0.94423758]
[1718171063409,0.55,3512.6,3512.3,0.94423758]
[1718171064963,0.55,3512.6,3512.3,0.34715173]
[1718171065124,0.55,3512.6,3512.2,3.05118585]
[1718171065312,0.55,3512.6,3512.3,0.27932703]
[1718171065514,0.55,3512.6,3512.3,0.59708585]
[1718171065745,0.55,3512.6,3512.4,0.2792683]
[1718171066248,0.55,3512.6,3512.3,0.59708585]
[1718171066553,0.55,3512.6,3512.4,0.2792683]
[1718171067054,0.55,3512.6,3512.3,0.59708585]
[1718171067352,0.55,3512.6,3512.4,0.2792683]
[1718171067728,0.55,3512.6,3512.2,3.05118585]
[1718171067943,0.55,3512.6,3512.3,0.27930117]
[1718171068322,0.55,3512.6,3512.2,3.05118585]
[1718171068523,0.55,3512.6,3512.3,0.27930117]
[1718171068742,0.55,3512.6,3512.2,3.05118585]
[1718171068955,0.55,3512.6,3512.3,0.27930117]
[1718171069353,0.55,3512.6,3512.2,3.05118585]
[1718171069559,0.55,3512.6,3512.4,0.27924244]
[1718171069853,0.55,3512.6,3512.3,0.27930117]
[1718171070048,0.55,3512.6,3512.5,0.27918372]
[1718171070257,0.55,3512.6,3512.4,0.27924244]
[1718171070576,0.55,3512.6,3512.5,0.27918372]
[1718171070922,0.55,3512.6,3512.3,0.59708585]
[1718171071257,0.55,3512.6,3512.4,0.27924244]
[1718171071559,0.55,3512.6,3512.2,3.05118585]
[1718171071766,6.16139,3512.5,3512.2,0.59708585]
[1718171071922,0.55,3512.4,3512.1,0.59708585]
[1718171076488,2.84713,3512.3,3512.1,0.59708585]
[1718171076775,0.55,3512.2,3512.1,0.59708585]
[1718171080333,0.55,3512.2,3512.1,0.87664242]
[1718171082580,3.642553,3512.2,3512.1,0.87664242]
[1718171082737,4.517553,3512.2,3512.1,0.27955657]
[1718171083175,4.517553,3512.2,3511.6,0.59708585]
[1718171083382,0.875,3511.8,3511.6,0.59708585]
[1718171083547,0.55,3511.7,3511.5,0.59708585]
[1718171083746,2.84778,3511.5,3511.4,0.59708585]
[1718171083944,3.39778,3511.5,3511.4,0.59708585]
[1718171085347,3.39778,3511.5,3511.3,0.59708585]
[1718171085550,0.55,3511.4,3511.3,0.59708585]
[1718171088367,0.55,3511.4,3511.2,0.59708585]
[1718171092370,0.55,3511.4,3511.1,3.09058585]
[1718171094654,0.55,3511.4,3511.1,3.89390493]
[1718171095463,0.55,3511.4,3511.2,0.28032671]
[1718171095882,0.55,3511.4,3511.1,3.89390493]
[1718171096076,0.55,3511.4,3511.3,0.28026794]
[1718171096283,0.55,3511.4,3511.1,3.29681908]
[1718171096284,0.55,3511.4,3511.2,0.28032671]
[1718171096486,0.55,3511.4,3511.3,0.28026794]
[1718171096790,0.55,3511.4,3511.1,3.29681908]
[1718171097098,0.55,3511.4,3511.3,0.28026794]
[1718171097261,0.55,3511.4,3511.2,0.28032671]
[1718171097602,0.55,3511.4,3511.3,0.28026794]
[1718171097965,0.55,3511.4,3511.0,0.59708585]
[1718171098169,0.55,3511.4,3511.1,0.28038548]
[1718171099774,2.84794,3511.3,3511.1,0.28038548]
[1718171100101,0.55,3511.2,3511.1,0.28038548]
[1718171103612,2.84812,3511.1,3510.7,0.59708585]
[1718171103802,2.84827,3510.9,3510.6,0.59851281]
[1718171104004,0.55,3510.8,3510.6,0.00142696]
[1718171109733,2.84843,3510.7,3510.6,0.00142696]
[1718171109909,3.39843,3510.7,3510.6,0.00142696]
[1718171110110,4.127153,3510.7,3510.6,0.00142696]
[1718171110322,9.477653,3510.7,3510.6,0.00142696]
[1718171110523,9.477653,3510.7,3510.6,0.28171855]
[1718171111249,10.352653,3510.7,3510.6,0.28171855]
[1718171111608,10.352653,3510.7,3510.6,0.00142696]
[1718171113518,10.352653,3510.7,3510.4,0.1223158]
[1718171113738,3.72359,3510.5,3510.4,0.1223158]
[1718171113908,4.27359,3510.5,3510.4,0.1223158]
[1718171114108,7.27359,3510.5,3510.4,0.1223158]
[1718171114440,9.75359,3510.5,3510.4,0.1223158]
[1718171115763,2.84953,3509.4,3508.9,2.2796]
[1718171116074,0.875,3509.0,3508.2,0.59708585]
[1718171116235,0.875,3508.8,3508.2,0.59708585]
[1718171116435,0.55,3508.7,3508.1,3.44762585]
[1718171116628,0.55,3508.7,3507.9,0.59708585]
[1718171116834,0.875,3508.4,3507.8,0.59708585]
[1718171117049,0.55,3508.3,3507.8,0.80096905]
[1718171117246,5.23692,3508.2,3507.7,0.59708585]
[1718171117435,0.875,3507.9,3507.7,0.59708585]
[1718171117636,0.55,3507.8,3507.4,0.00142826]
[1718171117968,3.55,3508.1,3507.4,0.00142826]
[1718171118156,0.875,3508.0,3507.4,0.00142826]
[1718171118360,0.55,3507.9,3507.4,0.00142826]
[1718171118675,4.425,3508.1,3507.4,0.00142826]
[1718171118982,7.41,3508.6,3507.6,2.4074]
[1718171119270,7.41,3508.6,3508.4,0.875]
[1718171119432,7.41,3508.6,3508.5,2.4074]
[1718171119636,3.72468,3509.2,3507.9,0.59708585]
[1718171119637,0.875,3509.0,3507.9,0.59708585]
[1718171119831,0.875,3509.0,3508.0,3.2824]
[1718171120028,10.25968,3509.2,3507.7,0.24088283]
[1718171120029,0.875,3508.8,3507.7,0.24088283]
[1718171120331,0.875,3508.8,3507.8,0.875]
[1718171121608,2.4797,3508.9,3507.8,0.45639487]
[1718171121609,0.55,3508.7,3507.8,0.45639487]
[1718171121894,1.425,3508.8,3507.8,2.78179487]
[1718171122045,0.55,3508.8,3507.9,0.875]
[1718171122250,0.55,3508.8,3507.9,1.24067949]
[1718171122947,0.55,3508.8,3508.1,0.875]
[1718171123258,0.55,3508.8,3508.2,0.28287892]
[1718171123458,0.55,3508.8,3508.0,0.875]
[1718171123632,0.9925,3508.8,3508.3,0.28282007]
[1718171123835,0.9925,3508.8,3508.0,0.875]
[1718171124158,0.9925,3508.8,3508.4,0.28278187]
[1718171124560,0.9925,3508.8,3508.0,0.875]
[1718171125086,0.9925,3508.8,3508.1,0.28297908]
[1718171125452,0.55,3508.8,3508.4,0.875]
[1718171125750,0.55,3508.8,3508.0,0.875]
[1718171125977,0.55,3508.8,3508.1,0.2843346]
[1718171127003,0.875,3508.2,3507.5,2.3823]
[1718171127199,0.875,3508.2,3507.4,0.00142826]
[1718171127401,0.55,3508.1,3507.4,0.00142826]
[1718171129183,2.85071,3507.9,3507.4,0.00142826]
[1718171129380,0.55,3507.8,3507.4,0.00142826]
[1718171131697,2.85088,3507.7,3507.4,0.00142826]
[1718171131896,3.55,3507.6,3507.4,0.00142826]
[1718171132104,3.55,3507.6,3506.9,0.1223158]
[1718171132325,3.55,3507.6,3507.5,0.28451315]
[1718171132486,3.55,3507.6,3506.9,0.1223158]
[1718171132682,3.55,3507.6,3507.5,0.28451315]
[1718171132888,3.55,3507.6,3506.9,0.1223158]
[1718171133420,4.423418,3507.6,3507.0,0.28480758]
[1718171133723,2.85109,3507.5,3507.0,0.28480758]
[1718171133906,3.55,3507.4,3507.0,0.28480758]
[1718171134888,0.55,3507.4,3507.0,0.28480758]
[1718171135087,0.55,3507.7,3507.0,0.28480758]
[1718171135328,0.55,3507.7,3507.1,0.05702134]
[1718171135689,0.55,3507.7,3507.2,0.28484344]
[1718171136789,10.2604,3508.3,3507.3,2.41702134]
[1718171136985,7.41,3508.3,3507.6,2.85095]
[1718171137221,7.41,3508.3,3507.8,2.85075]
[1718171137406,2.8505,3508.2,3507.9,0.28507499]
[1718171137813,2.8505,3508.2,3507.3,2.36]
[1718171138116,2.8505,3508.2,3507.4,0.28537051]
[1718171138322,0.55,3508.1,3507.4,0.28537051]
[1718171138621,7.41,3508.3,3507.8,2.85072]
[1718171138829,7.41,3508.3,3508.0,2.85061]
[1718171139333,7.41,3508.3,3508.1,0.2847968]